Workbook

Sheet Sheet1
A1: 主材采购招标控制价
A2: 工程名称：红谷滩区雨污管网及污水处理清淤改造工程-主材采购
A3: 序号 | B3: 项目名称 | C3: 计量单位 | D3: 工程量 | E3: 含税单价（元） | F3: 税率% | G3: 合价 | H3: 备注
A4: 1 | B4: 钢筋 HRB400以内φ12～18 | C4: kg | D4: 5000 | E4: 3.20 | F4: 13 | G4: =ROUND(D4*E4,2) -> 16000
A5: 2 | B5: 钢筋 HPB300φ12～18 | C5: kg | D5: 5000 | E5: 3.54 | F5: 13 | G5: =ROUND(D5*E5,2) -> 17700
A6: 3 | B6: 雨水口成品球墨铸铁盖板（750*450*50） 平箅（带截污框） | C6: 套 | D6: 100 | E6: 205.00 | F6: 13 | G6: 20500 | H6: 1、承载力≥400KN； 3、成套重量不得低于48kg。
A7: 4 | B7: 雨水口成品铸铁盖板（750*450*50） 平箅 | C7: 套 | D7: 500 | E7: 85.00 | F7: 13 | G7: 42500 | H7: 过小车
A8: 5 | B8: 排水沟成品铸铁盖板（500*300*50） 平箅 | C8: 套 | D8: 80 | E8: 50.00 | F8: 13 | G8: 4000 | H8: 过小车
A9: 5 | B9: 排水沟成品铸铁盖板（400*600*30） 平箅 | C9: 套 | D9: 80 | E9: =39+10 -> 49.00 | F9: 13 | G9: 3920 | H9: 过小车
A10: 6 | B10: 检查井编织防坠网（含专用挂钩等辅材） | C10: 套 | D10: 50 | E10: 16.00 | F10: 13 | G10: 800
A11: 7 | B11: 钢筋混凝土防沉降一体化球墨铸铁井盖、井座（实重不低于96kg）D400，含球墨铸铁防坠网、调节环,尺寸1.2*1.2*0.2m | C11: 套 | D11: 20 | E11: 900.00 | F11: 13 | G11: 18000
A12: 8 | B12: 钢筋混凝土防沉降一体化球墨铸铁井盖、井座（实重不低于96kg）D700，含球墨铸铁防坠网、调节环,尺寸1.2*1.2*0.2m | C12: 套 | D12: 20 | E12: 900.00 | F12: 13 | G12: 18000
A13: 9 | B13: 700*700*80mm不锈钢成套检查井盖 | C13: 套 | D13: 20 | E13: 400.00 | F13: 13 | G13: 8000
A14: 10 | B14: 新建塑料Ø630污水井,井室+井圈深度3.5米 | C14: 套 | D14: 20 | E14: 400.00 | F14: 13 | G14: 8000
A15: 11 | B15: 污水塑料检查井(井筒直径mm以内) 700,井室深度1米，井圈0.3m | C15: 套 | D15: 20 | E15: 250.00 | F15: 13 | G15: 5000
A16: 12 | B16: 预制钢筋混凝土直通检查井井室、井座，外径φ1250、内径φ1000、高度1米、出水口直径φ750 | C16: 套 | D16: 20 | E16: 750.00 | F16: 13 | G16: 15000 | H16: 暂估价
A17: 13 | B17: 钢筋混凝土井筒内径φ700,厚度125 | C17: m | D17: 30 | E17: 350.00 | F17: 13 | G17: 10500 | H17: 暂估价
A18: 14 | B18: 钢筋混凝土Φ630国标中空壁井筒 | C18: m | D18: 30 | E18: 210.00 | F18: 13 | G18: 6300 | H18: 暂估价
A19: 15 | B19: HDPE井筒Φ800，高度0.5m | C19: 套 | D19: 20 | E19: 190.00 | F19: 13 | G19: 3800 | H19: 暂估价
A20: 16 | B20: 芝麻灰火烧面大理石广场砖（规格：600X300X50mm) | C20: m2 | D20: 70 | E20: 122.00 | F20: 13 | G20: 8540
A21: 17 | B21: 芝麻灰火烧面大理石广场砖（规格：300X600X30mm) | C21: m2 | D21: 70 | E21: 70.00 | F21: 13 | G21: 4900
A22: 18 | B22: 芝麻黑火烧面大理石广场砖（规格：600X600X30mm) | C22: m2 | D22: 70 | E22: 80.00 | F22: 13 | G22: 5600
A23: 19 | B23: 芝麻白火烧面大理石广场砖（规格：600X600X30mm) | C23: m2 | D23: 70 | E23: 65.00 | F23: 13 | G23: 4550
A24: 20 | B24: 火烧面芝麻白大理石广场砖（规格：1000X300X50mm) | C24: m2 | D24: 70 | E24: 110.00 | F24: 13 | G24: 7700
A25: 21 | B25: 芝麻灰花岗岩路沿石（700*200*100mm） | C25: m | D25: 70 | E25: 35.00 | F25: 13 | G25: 2450
A26: 22 | B26: 芝麻灰花岗岩路沿石（1000*300*120mm） | C26: m | D26: 70 | E26: 63.00 | F26: 13 | G26: 4410
A27: 23 | B27: 火烧面芝麻灰花岗岩（300*600*25） | C27: m2 | D27: 70 | E27: 63.00 | F27: 13 | G27: 4410
A28: 24 | B28: 花岗岩树池石1000*200*80 | C28: m | D28: 70 | E28: 28.00 | F28: 13 | G28: 1960
A29: 25 | B29: 700*200*150mm芝麻灰花岗岩路沿石 | C29: m | D29: 70 | E29: 48.00 | F29: 13 | G29: 3360
A30: 26 | B30: 700*100*100mm芝麻灰花岗岩路沿石 | C30: m | D30: 70 | E30: 20.00 | F30: 13 | G30: 1400
A31: 27 | B31: 5cm芝麻白花岗岩人行道面板 | C31: m2 | D31: 70 | E31: 110.00 | F31: 13 | G31: 7700
A32: 28 | B32: 3cm芝麻白花岗岩花岗岩人行道面板 | C32: m2 | D32: 70 | E32: 65.00 | F32: 13 | G32: 4550
A33: 29 | B33: 3cm芝麻白花岗岩600*600*30人行道面板 | C33: m2 | D33: 70 | E33: 65.00 | F33: 13 | G33: 4550
A34: 30 | B34: PC砖 300*600*18mm | C34: m2 | D34: 70 | E34: 53.00 | F34: 13 | G34: 3710
A35: 31 | B35: 200*100*60mm人行道地面吸水砖（素色） | C35: 块 | D35: 5000 | E35: 0.60 | F35: 3 | G35: 3000
A36: 32 | B36: 人行道吸水砖 200*100*60（彩色） | C36: 千块 | D36: 20 | E36: 600.00 | F36: 3 | G36: 12000
A37: 33 | B37: 红机砖 240×115×53 | C37: 千块 | D37: 80 | E37: 363.00 | F37: 3 | G37: =ROUND(D37*E37,2) -> 29040
A38: 34 | B38: 标准砖 240×115×53 | C38: 千块 | D38: 80 | E38: 363.00 | F38: 3 | G38: 29040
A39: 35 | B39: 中粗砂 | C39: m3 | D39: 300 | E39: 130.00 | F39: 3 | G39: 39000
A40: 36 | B40: 碎石(综合) | C40: m3 | D40: 80 | E40: 113.00 | F40: 3 | G40: 9040
A41: 37 | B41: 预拌混凝土 C30 | C41: m3 | D41: 100 | E41: =380*0.88 -> 334.40 | F41: 3 | G41: 33440
A42: 38 | B42: 预拌混凝土 C25 | C42: m3 | D42: 30 | E42: =363*0.88 -> 319.44 | F42: 3 | G42: 9583.2
A43: 39 | B43: 预拌混凝土 C20 | C43: m3 | D43: 30 | E43: =353*0.88 -> 310.64 | F43: 3 | G43: 9319.2
A44: 40 | B44: 预拌混凝土 C15 | C44: m3 | D44: 50 | E44: =E43-10 -> 300.64 | F44: 3 | G44: 15032
A45: 41 | B45: 预拌混凝土 C10 | C45: m3 | D45: 30 | E45: =E44-10 -> 290.64 | F45: 3 | G45: 8719.2
A46: 42 | B46: 素色透水混凝土 C25 | C46: m3 | D46: 30 | E46: 460.00 | F46: 13 | G46: 13800
A47: 43 | B47: 快干水泥42.5 | C47: t | D47: 10 | E47: =(340.5*0.88+10)*1.1 -> 340.60 | F47: 13 | G47: 3406.04
A48: 44 | B48: 中粒式沥青混凝土AC-16 | C48: m3 | D48: 50 | E48: 900.00 | F48: 13 | G48: 45000 | H48: 暂估价
A49: 45 | B49: SBS细粒式改性沥青混凝土AC-13 | C49: m3 | D49: 50 | E49: 1100.00 | F49: 13 | G49: 55000 | H49: 暂估价
A50: 46 | B50: 乳化沥青 | C50: kg | D50: 500 | E50: 2.90 | F50: 13 | G50: 1450
A51: 47 | B51: HDPE缠绕增强管 DN800 SN≥10KN | C51: m | D51: 30 | E51: 394.00 | F51: 13 | G51: 11820 | H51: 暂估价
A52: 48 | B52: HDPE缠绕增强管 DN600 SN≥10KN | C52: m | D52: 40 | E52: 266.00 | F52: 13 | G52: 10640 | H52: 暂估价
A53: 49 | B53: HDPE缠绕增强管 DN500 SN≥10KN | C53: m | D53: 100 | E53: 175.00 | F53: 13 | G53: 17500 | H53: 暂估价
A54: 50 | B54: HDPE缠绕增强管 DN400 SN≥10KN | C54: m | D54: 40 | E54: 112.00 | F54: 13 | G54: 4480 | H54: 暂估价
A55: 51 | B55: HDPE缠绕增强管 DN300 SN≥10KN | C55: m | D55: 100 | E55: 74.00 | F55: 13 | G55: 7400 | H55: 暂估价
A56: 52 | B56: HDPE缠绕增强管 DN200 SN≥10KN | C56: m | D56: 100 | E56: 57.00 | F56: 13 | G56: 5700 | H56: 暂估价
A57: 53 | B57: PVC排水管DN110 | C57: m | D57: 500 | E57: 13.00 | F57: 13 | G57: 6500 | H57: 暂估价
A58: 54 | B58: PVC排水管DN75 | C58: m | D58: 100 | E58: 8.00 | F58: 13 | G58: 800 | H58: 暂估价
A59: 55 | B59: PVC排水管DN50 | C59: m | D59: 100 | E59: 5.00 | F59: 13 | G59: 500 | H59: 暂估价
A60: 56 | B60: 堵漏王（1kg） | C60: 包 | D60: 1000 | E60: 5.00 | F60: 13 | G60: 5000
A61: 57 | B61: 草皮台湾青 | C61: m2 | D61: 300 | E61: 8.00 | F61: 9 | G61: 2400
A62: 58 | B62: 混凝土管DN800 SN≥12.5 二级管 | C62: m | D62: 40 | E62: 186.00 | F62: 13 | G62: 7440
A63: 59 | B63: 混凝土管DN600 SN≥12.5 二级管 | C63: m | D63: 40 | E63: 135.00 | F63: 13 | G63: 5400
A64: 60 | B64: 混凝土管DN500 SN≥12.5 二级管 | C64: m | D64: 40 | E64: =112-2 -> 110.00 | F64: 13 | G64: 4400
A65: 61 | B65: 混凝土管DN400 SN≥10 二级管 | C65: m | D65: 40 | E65: =81-2 -> 79.00 | F65: 13 | G65: 3160
A66: 62 | B66: 混凝土管DN300 SN≥10 二级管 | C66: m | D66: 40 | E66: =59-2 -> 57.00 | F66: 13 | G66: 2280
A67: 63 | B67: 围挡租赁，含安装拆除施工围挡（2000*1800）带铁支撑 | C67: m/天 | D67: 30000 | E67: 2.30 | F67: 13 | G67: 69000
A68: 64 | B68: 无纺布 | C68: m2 | D68: 8000 | E68: 0.40 | F68: 13 | G68: 3200
A69: 65 | B69: 复合木模板 | C69: m2 | D69: 100 | E69: 26.00 | F69: 13 | G69: 2600
A70: 66 | B70: 气囊管堵安装拆除 管径DN600及以内 | C70: 只 | D70: 100 | E70: 1000.00 | F70: 13 | G70: 100000
A71: 67 | B71: 气囊管堵安装拆除 管径DN600以上 | C71: 只 | D71: 70 | E71: 1800.00 | F71: 13 | G71: 126000
A72: 合计（元）： | G72: =SUM(G4:G71) -> 979899.64
A73: 注：1、以上含税单价均包括运、装卸到场费用、综合考虑施工过程中损耗； 2、招标工程量为暂估数量，结算据实调整； 3、结算量、价根据本项目建设单位结算审计情况进行调整。 4、实际施工实物与清单不符的，结算据实调整。
A74: 编制人： | D74: 复核人：
